[Event "*** SCC Grand Prix: Titled Tuesday Blitz"]
[Site "Chess.com"]
[Date "2020.09.08"]
[Round "9"]
[White "bocah_sakit"]
[Black "VerdeNotte"]
[Result "1-0"]
[WhiteElo "2694"]
[BlackElo "2835"]
[TimeControl "180+1"]
[EndTime "11:48:35 PDT"]
[Termination "bocah_sakit won by resignation"]

1. e4 {[%clk 0:03:00.9]} 1... c5 {[%clk 0:02:57.9]} 2. Nf3 {[%clk 0:03:00.7]}
2... g6 {[%clk 0:02:58.4]} 3. d4 {[%clk 0:03:00.9]} 3... cxd4 {[%clk 0:02:58.9]}
4. Qxd4 {[%clk 0:03:01.5]} 4... Nf6 {[%clk 0:02:59.1]} 5. Nc3 {[%clk 0:03:01.8]}
5... Nc6 {[%clk 0:02:59.1]} 6. Qa4 {[%clk 0:03:02.3]} 6... d6 {[%clk 0:02:59.4]}
7. e5 {[%clk 0:03:02.7]} 7... dxe5 {[%clk 0:03:00]} 8. Nxe5 {[%clk 0:03:03.6]}
8... Bg7 {[%clk 0:03:00.5]} 9. Nxc6 {[%clk 0:03:02.5]} 9... bxc6 {[%clk
0:03:00.5]} 10. Qxc6+ {[%clk 0:03:03.4]} 10... Bd7 {[%clk 0:03:00.9]} 11. Qa6
{[%clk 0:02:57.3]} 11... O-O {[%clk 0:03:00.7]} 12. Be2 {[%clk 0:02:54.2]} 12...
Qc7 {[%clk 0:02:57]} 13. Bf3 {[%clk 0:02:47.2]} 13... Rab8 {[%clk 0:02:46.5]}
14. O-O {[%clk 0:02:46.6]} 14... Ng4 {[%clk 0:02:45.1]} 15. Bxg4 {[%clk
0:02:30]} 15... Bxg4 {[%clk 0:02:44.8]} 16. Nd5 {[%clk 0:02:25.7]} 16... Qxc2
{[%clk 0:02:26.4]} 17. Nxe7+ {[%clk 0:02:21.4]} 17... Kh8 {[%clk 0:02:26.5]} 18.
Qxa7 {[%clk 0:02:18.5]} 18... Ra8 {[%clk 0:02:09.3]} 19. Qb6 {[%clk 0:02:09.2]}
19... Rfe8 {[%clk 0:02:01.7]} 20. Nd5 {[%clk 0:02:05]} 20... Rab8 {[%clk
0:01:40.5]} 21. Qc7 {[%clk 0:01:59.5]} 21... Qd3 {[%clk 0:01:36.1]} 22. Nf4
{[%clk 0:01:49.6]} 22... Qb5 {[%clk 0:01:23.6]} 23. a4 {[%clk 0:01:43.8]} 23...
Qb3 {[%clk 0:01:17]} 24. Ra3 {[%clk 0:01:40.9]} 24... Qb4 {[%clk 0:01:15.3]} 25.
Qxf7 {[%clk 0:01:28.6]} 25... Re1 {[%clk 0:01:07.5]} 26. Re3 {[%clk 0:00:41.7]}
26... Rxf1+ {[%clk 0:01:04.5]} 27. Kxf1 {[%clk 0:00:41.6]} 27... Rf8 {[%clk
0:00:48.2]} 28. Re8 {[%clk 0:00:37.2]} 28... Qd6 {[%clk 0:00:33.7]} 29. Rxf8+
{[%clk 0:00:29.2]} 29... Bxf8 {[%clk 0:00:34.1]} 30. Bd2 {[%clk 0:00:20.3]}
30... Bg7 {[%clk 0:00:18.7]} 31. Qe8+ {[%clk 0:00:19]} 31... Qf8 {[%clk
0:00:18.9]} 32. Qxf8+ {[%clk 0:00:14.7]} 32... Bxf8 {[%clk 0:00:19.8]} 33. a5
{[%clk 0:00:11.3]} 33... Bd7 {[%clk 0:00:20.4]} 34. Ke2 {[%clk 0:00:04.8]} 34...
Kg7 {[%clk 0:00:20.6]} 35. Be3 {[%clk 0:00:04]} 35... Bb5+ {[%clk 0:00:20.1]}
36. Kd1 {[%clk 0:00:02.9]} 36... Ba4+ {[%clk 0:00:19.9]} 37. Kc1 {[%clk
0:00:03]} 37... Bb5 {[%clk 0:00:20.3]} 38. Nd5 {[%clk 0:00:02.9]} 38... Bd6
{[%clk 0:00:18.4]} 39. Bd4+ {[%clk 0:00:02.9]} 39... Kf7 {[%clk 0:00:18.5]} 40.
Nc3 {[%clk 0:00:03.2]} 40... Ba6 {[%clk 0:00:18.2]} 41. g3 {[%clk 0:00:03.6]}
41... Ke6 {[%clk 0:00:18.6]} 42. Bb6 {[%clk 0:00:03.6]} 42... Kf5 {[%clk
0:00:18.8]} 43. Kd2 {[%clk 0:00:03.9]} 43... Kg4 {[%clk 0:00:19.2]} 44. Ke3
{[%clk 0:00:03.9]} 44... Kh3 {[%clk 0:00:19.6]} 45. Ne4 {[%clk 0:00:04.2]} 45...
Bb4 {[%clk 0:00:17.3]} 46. Ng5+ {[%clk 0:00:03.5]} 46... Kxh2 {[%clk 0:00:17.3]}
47. Nxh7 {[%clk 0:00:04.4]} 47... Kg2 {[%clk 0:00:17.1]} 48. Ng5 {[%clk
0:00:04.6]} 48... Be1 {[%clk 0:00:17.4]} 49. Ne4 {[%clk 0:00:04.8]} 49... g5
{[%clk 0:00:17.6]} 50. Nxg5 {[%clk 0:00:03.9]} 50... Bxf2+ {[%clk 0:00:17.6]}
51. Ke4 {[%clk 0:00:04.3]} 51... Bxg3 {[%clk 0:00:17.4]} 52. Kd5 {[%clk
0:00:04.5]} 52... Kf1 {[%clk 0:00:13.3]} 53. Kc6 {[%clk 0:00:04]} 53... Ke2
{[%clk 0:00:12.7]} 54. b4 {[%clk 0:00:03.3]} 54... Bf4 {[%clk 0:00:09.5]} 55.
Ne4 {[%clk 0:00:03.2]} 55... Bd3 {[%clk 0:00:08.6]} 56. Nc5 {[%clk 0:00:03.5]}
56... Bf5 {[%clk 0:00:06.7]} 57. a6 {[%clk 0:00:03.1]} 57... Bg4 {[%clk
0:00:07.2]} 58. a7 {[%clk 0:00:01.2]} 58... Bf3+ {[%clk 0:00:07.8]} 59. Kb5
{[%clk 0:00:02.1]} 59... Ba8 {[%clk 0:00:06.7]} 60. Ka6 {[%clk 0:00:02.3]} 60...
Kd2 {[%clk 0:00:06.5]} 61. Ne6 {[%clk 0:00:02.6]} 61... Be5 {[%clk 0:00:06.2]}
62. Bc7 {[%clk 0:00:02.8]} 62... Bc3 {[%clk 0:00:03.8]} 63. b5 {[%clk
0:00:02.9]} 63... Bd5 {[%clk 0:00:04.5]} 64. Nc5 {[%clk 0:00:02.2]} 64... Bd4
{[%clk 0:00:04.4]} 65. Nb7 {[%clk 0:00:02.2]} 65... Kd3 {[%clk 0:00:03.8]} 66.
a8=Q {[%clk 0:00:02.1]} 66... Bc4 {[%clk 0:00:04.5]} 67. Qd8 {[%clk 0:00:02.2]}
67... Ke3 {[%clk 0:00:05]} 68. Bb6 {[%clk 0:00:02.6]} 68... Bc5 {[%clk
0:00:04.9]} 69. Qd6 {[%clk 0:00:02.7]} 69... Ke2 {[%clk 0:00:05.6]} 70. Bxc5
{[%clk 0:00:02.8]} 70... Bxb5+ {[%clk 0:00:06.1]} 71. Kb6 {[%clk 0:00:03.7]}
71... Kf3 {[%clk 0:00:06.7]} 72. Qe5 {[%clk 0:00:04.1]} 72... Bd3 {[%clk
0:00:06.8]} 73. Qe3+ {[%clk 0:00:05]} 73... Kg4 {[%clk 0:00:07.1]} 74. Qxd3
{[%clk 0:00:05.3]} 74... Kg5 {[%clk 0:00:07.7]} 75. Qd4 {[%clk 0:00:06.2]} 1-0

[Event "*** SCC Grand Prix: Titled Tuesday Blitz"]
[Site "Chess.com"]
[Date "2020.09.08"]
[Round "9"]
[White "MrrRefrao"]
[Black "peixe64"]
[Result "1-0"]
[WhiteElo "2240"]
[BlackElo "2334"]
[TimeControl "180+1"]
[EndTime "11:48:38 PDT"]
[Termination "MrrRefrao won on time"]

1. e4 {[%clk 0:02:57.7]} 1... e5 {[%clk 0:02:59.8]} 2. Nf3 {[%clk 0:02:56.7]}
2... Nc6 {[%clk 0:03:00]} 3. Bb5 {[%clk 0:02:53.1]} 3... a6 {[%clk 0:02:58.5]}
4. Ba4 {[%clk 0:02:52.6]} 4... Nf6 {[%clk 0:02:58.2]} 5. d3 {[%clk 0:02:50.9]}
5... b5 {[%clk 0:02:53.9]} 6. Bb3 {[%clk 0:02:50.4]} 6... Be7 {[%clk 0:02:53.9]}
7. O-O {[%clk 0:02:45.5]} 7... d6 {[%clk 0:02:52.5]} 8. a4 {[%clk 0:02:41.9]}
8... b4 {[%clk 0:02:50.3]} 9. a5 {[%clk 0:02:41.6]} 9... O-O {[%clk 0:02:47.2]}
10. Nbd2 {[%clk 0:02:33.1]} 10... Nb8 {[%clk 0:02:26.4]} 11. Nc4 {[%clk
0:02:30.2]} 11... Nbd7 {[%clk 0:02:25.1]} 12. Bd2 {[%clk 0:02:22.1]} 12... Nc5
{[%clk 0:02:15.9]} 13. Bxb4 {[%clk 0:02:17.3]} 13... Nxb3 {[%clk 0:02:15.5]} 14.
cxb3 {[%clk 0:02:17.1]} 14... Rb8 {[%clk 0:02:07.5]} 15. Bc3 {[%clk 0:01:55.8]}
15... Re8 {[%clk 0:01:58.4]} 16. h3 {[%clk 0:01:54.5]} 16... Bf8 {[%clk
0:01:57.9]} 17. Qc2 {[%clk 0:01:43.1]} 17... Be6 {[%clk 0:01:51.4]} 18. Rfc1
{[%clk 0:01:33.1]} 18... c5 {[%clk 0:01:41.1]} 19. Nb6 {[%clk 0:01:23.4]} 19...
Nd7 {[%clk 0:01:33.3]} 20. Nc4 {[%clk 0:01:23.1]} 20... Rb5 {[%clk 0:01:22.6]}
21. Bd2 {[%clk 0:01:22.6]} 21... h6 {[%clk 0:01:17.2]} 22. Be3 {[%clk
0:01:18.6]} 22... Qb8 {[%clk 0:01:15.8]} 23. Nfd2 {[%clk 0:01:17.6]} 23... Qb7
{[%clk 0:01:12.2]} 24. f4 {[%clk 0:01:11.1]} 24... f6 {[%clk 0:01:08]} 25. Rf1
{[%clk 0:01:08.7]} 25... Nb8 {[%clk 0:01:00]} 26. Nb6 {[%clk 0:00:56.4]} 26...
Nc6 {[%clk 0:00:50.2]} 27. Ndc4 {[%clk 0:00:52]} 27... Be7 {[%clk 0:00:37.6]}
28. Ra3 {[%clk 0:00:42.6]} 28... Nxa5 {[%clk 0:00:28.3]} 29. Rfa1 {[%clk
0:00:21.3]} 29... Nxc4 {[%clk 0:00:20.2]} 30. Nxc4 {[%clk 0:00:20.5]} 30... Ra8
{[%clk 0:00:15.4]} 31. Kh2 {[%clk 0:00:11.6]} 31... Kh7 {[%clk 0:00:14.2]} 32.
Rf1 {[%clk 0:00:07.7]} 32... Rb8 {[%clk 0:00:12]} 33. Rfa1 {[%clk 0:00:03.4]}
33... Rxb3 {[%clk 0:00:10.7]} 34. Rxa6 {[%clk 0:00:03.3]} 34... Qc7 {[%clk
0:00:07.8]} 35. Ra7 {[%clk 0:00:02.4]} 35... R8b7 {[%clk 0:00:07.7]} 36. Rxb7
{[%clk 0:00:02.9]} 36... Rxb7 {[%clk 0:00:06.4]} 37. Ra2 {[%clk 0:00:01.9]}
37... Rb4 {[%clk 0:00:06.4]} 38. f5 {[%clk 0:00:01.6]} 38... Bf7 {[%clk
0:00:06.4]} 39. Bd2 {[%clk 0:00:01.2]} 39... Rb7 {[%clk 0:00:04.7]} 40. b3
{[%clk 0:00:01.9]} 40... Qb8 {[%clk 0:00:04.4]} 41. Ra3 {[%clk 0:00:02.4]} 41...
Rb5 {[%clk 0:00:04.7]} 42. Bc3 {[%clk 0:00:02.8]} 42... Qb7 {[%clk 0:00:04.9]}
43. Qa2 {[%clk 0:00:03.2]} 43... d5 {[%clk 0:00:04.1]} 44. Ra7 {[%clk
0:00:02.9]} 44... Qc6 {[%clk 0:00:02.1]} 45. Rxe7 {[%clk 0:00:03.3]} 45... dxc4
{[%clk 0:00:02.2]} 46. bxc4 {[%clk 0:00:03.8]} 46... Rb7 {[%clk 0:00:02.6]} 47.
Rxb7 {[%clk 0:00:03.3]} 47... Qxb7 {[%clk 0:00:03.5]} 48. Qb2 {[%clk 0:00:03.3]}
48... Qd7 {[%clk 0:00:04]} 49. Qd2 {[%clk 0:00:02.6]} 49... Qc6 {[%clk
0:00:04.2]} 50. h4 {[%clk 0:00:02.8]} 50... Be8 {[%clk 0:00:02.5]} 51. g4 {[%clk
0:00:03.1]} 51... Qb6 {[%clk 0:00:02.8]} 52. g5 {[%clk 0:00:03.3]} 52... Qd8
{[%clk 0:00:02.9]} 53. g6+ {[%clk 0:00:03.1]} 53... Kg8 {[%clk 0:00:03.2]} 54.
Qb2 {[%clk 0:00:03.4]} 54... Qc7 {[%clk 0:00:03.9]} 55. h5 {[%clk 0:00:02.5]}
55... Bc6 {[%clk 0:00:04.3]} 56. Kg3 {[%clk 0:00:02.5]} 56... Bb7 {[%clk
0:00:04.8]} 57. Kf3 {[%clk 0:00:02.8]} 57... Bc8 {[%clk 0:00:05.3]} 58. Ke3
{[%clk 0:00:03.2]} 58... Bd7 {[%clk 0:00:05.9]} 59. Qa3 {[%clk 0:00:03.4]} 59...
Be8 {[%clk 0:00:06.2]} 60. Qa6 {[%clk 0:00:03.3]} 60... Qc6 {[%clk 0:00:05.8]}
61. Qa7 {[%clk 0:00:02.9]} 61... Qd7 {[%clk 0:00:05.8]} 62. Qb8 {[%clk
0:00:02.6]} 62... Qc6 {[%clk 0:00:05.7]} 63. Qd8 {[%clk 0:00:02.5]} 63... Kf8
{[%clk 0:00:05.7]} 64. Qb8 {[%clk 0:00:01.8]} 64... Qd7 {[%clk 0:00:05.2]} 65.
Qb2 {[%clk 0:00:02.2]} 65... Qc6 {[%clk 0:00:05.7]} 66. Qa3 {[%clk 0:00:02.6]}
66... Bd7 {[%clk 0:00:05.7]} 67. Ba5 {[%clk 0:00:03.5]} 67... Ke7 {[%clk
0:00:05.6]} 68. Bc3 {[%clk 0:00:03.9]} 68... Kd6 {[%clk 0:00:06]} 69. Qa5 {[%clk
0:00:04.5]} 69... Qc7 {[%clk 0:00:05.5]} 70. Qxc7+ {[%clk 0:00:04]} 70... Kxc7
{[%clk 0:00:05.6]} 71. Ba5+ {[%clk 0:00:04.9]} 71... Kc6 {[%clk 0:00:06.1]} 72.
Bd8 {[%clk 0:00:05.2]} 72... Kd6 {[%clk 0:00:05.1]} 73. Bxf6 {[%clk 0:00:05.5]}
1-0

[Event "*** SCC Grand Prix: Titled Tuesday Blitz"]
[Site "Chess.com"]
[Date "2020.09.08"]
[Round "9"]
[White "shnitez"]
[Black "arminmusovic"]
[Result "1-0"]
[WhiteElo "2535"]
[BlackElo "2555"]
[TimeControl "180+1"]
[EndTime "11:48:40 PDT"]
[Termination "shnitez won by checkmate"]

1. c4 {[%clk 0:03:00.9]} 1... e5 {[%clk 0:03:00.1]} 2. Nc3 {[%clk 0:03:00.6]}
2... Nf6 {[%clk 0:03:00.7]} 3. Nf3 {[%clk 0:03:01.2]} 3... e4 {[%clk 0:03:00.7]}
4. Ng5 {[%clk 0:03:01]} 4... b5 {[%clk 0:03:01.3]} 5. b3 {[%clk 0:02:22.1]} 5...
c6 {[%clk 0:02:42]} 6. Ngxe4 {[%clk 0:02:15.8]} 6... Nxe4 {[%clk 0:02:42.4]} 7.
Nxe4 {[%clk 0:02:16.7]} 7... bxc4 {[%clk 0:02:39.4]} 8. bxc4 {[%clk 0:02:16.7]}
8... d5 {[%clk 0:02:40]} 9. cxd5 {[%clk 0:02:16]} 9... cxd5 {[%clk 0:02:40.9]}
10. Ng3 {[%clk 0:02:07.5]} 10... Bd6 {[%clk 0:02:36.6]} 11. Qa4+ {[%clk
0:01:50.5]} 11... Nd7 {[%clk 0:02:33.8]} 12. Qc6 {[%clk 0:01:44.9]} 12... Be5
{[%clk 0:02:14.1]} 13. Qxa8 {[%clk 0:01:16.8]} 13... Nb6 {[%clk 0:02:05.8]} 14.
Qc6+ {[%clk 0:01:12]} 14... Bd7 {[%clk 0:02:06.1]} 15. Qc5 {[%clk 0:01:04.8]}
15... Bxa1 {[%clk 0:02:04.9]} 16. e3 {[%clk 0:00:57.7]} 16... Na4 {[%clk
0:01:51.5]} 17. Qb4 {[%clk 0:00:47.8]} 17... Bf6 {[%clk 0:01:21.3]} 18. Ba3
{[%clk 0:00:45.7]} 18... a5 {[%clk 0:01:21.8]} 19. Qd6 {[%clk 0:00:42.1]} 19...
Nb6 {[%clk 0:01:10]} 20. Nh5 {[%clk 0:00:37.6]} 20... Ba1 {[%clk 0:00:50]} 21.
d4 {[%clk 0:00:27.6]} 21... Bc3+ {[%clk 0:00:47.2]} 22. Kd1 {[%clk 0:00:20.8]}
22... Ba4+ {[%clk 0:00:33.2]} 23. Kc1 {[%clk 0:00:21]} 23... Qxd6 {[%clk
0:00:33.2]} 24. Bxd6 {[%clk 0:00:21]} 24... Kd7 {[%clk 0:00:33.7]} 25. Bc5
{[%clk 0:00:20.5]} 25... Nc4 {[%clk 0:00:31.9]} 26. Bxc4 {[%clk 0:00:18.7]}
26... dxc4 {[%clk 0:00:32.8]} 27. Nf4 {[%clk 0:00:10.3]} 27... Rb8 {[%clk
0:00:29]} 28. Ba3 {[%clk 0:00:10.3]} 28... Ba1 {[%clk 0:00:20.2]} 29. h4 {[%clk
0:00:06.8]} 29... c3 {[%clk 0:00:20.5]} 30. Nd3 {[%clk 0:00:05.1]} 30... Kc6
{[%clk 0:00:18]} 31. Nc5 {[%clk 0:00:05]} 31... Kb5 {[%clk 0:00:18.5]} 32. h5
{[%clk 0:00:02.5]} 32... h6 {[%clk 0:00:18.3]} 33. Nb3 {[%clk 0:00:02.7]} 33...
Bxb3 {[%clk 0:00:17.3]} 34. axb3 {[%clk 0:00:03.6]} 34... a4 {[%clk 0:00:17]}
35. Kc2 {[%clk 0:00:04.1]} 35... axb3+ {[%clk 0:00:15.8]} 36. Kxb3 {[%clk
0:00:05]} 36... Ka5+ {[%clk 0:00:14.4]} 37. Kc2 {[%clk 0:00:05.1]} 37... Bb2
{[%clk 0:00:14.8]} 38. Bxb2 {[%clk 0:00:04.5]} 38... Rxb2+ {[%clk 0:00:13.8]}
39. Kxc3 {[%clk 0:00:04.7]} 39... Rxf2 {[%clk 0:00:14.7]} 40. g4 {[%clk
0:00:04.4]} 40... Rg2 {[%clk 0:00:14.2]} 41. Rf1 {[%clk 0:00:04.6]} 41... f6
{[%clk 0:00:14.2]} 42. Rf4 {[%clk 0:00:04.3]} 42... Kb5 {[%clk 0:00:13.8]} 43.
Kd3 {[%clk 0:00:04.8]} 43... Kc6 {[%clk 0:00:13.3]} 44. Ke4 {[%clk 0:00:05.2]}
44... Kd6 {[%clk 0:00:13.4]} 45. Kf3 {[%clk 0:00:06]} 45... Ra2 {[%clk
0:00:14.3]} 46. Rf5 {[%clk 0:00:06.2]} 46... Ke6 {[%clk 0:00:15.2]} 47. Rb5
{[%clk 0:00:06.3]} 47... Kf7 {[%clk 0:00:16.1]} 48. Rb7+ {[%clk 0:00:06.5]}
48... Kg8 {[%clk 0:00:16.6]} 49. Rb6 {[%clk 0:00:07.4]} 49... Ra5 {[%clk
0:00:16.7]} 50. Rb8+ {[%clk 0:00:07.4]} 50... Kh7 {[%clk 0:00:16.6]} 51. Rb7
{[%clk 0:00:08.3]} 51... Ra1 {[%clk 0:00:17.2]} 52. Ke4 {[%clk 0:00:08.3]} 52...
Rf1 {[%clk 0:00:17.5]} 53. d5 {[%clk 0:00:08.3]} 53... Rd1 {[%clk 0:00:17.1]}
54. Rb4 {[%clk 0:00:08.1]} 54... Kg8 {[%clk 0:00:16.5]} 55. Rd4 {[%clk
0:00:08.5]} 55... Ra1 {[%clk 0:00:16.6]} 56. d6 {[%clk 0:00:08.6]} 56... Ra8
{[%clk 0:00:17.3]} 57. d7 {[%clk 0:00:08.9]} 57... Rd8 {[%clk 0:00:18.2]} 58.
Kf5 {[%clk 0:00:09.4]} 58... Kf7 {[%clk 0:00:19.1]} 59. e4 {[%clk 0:00:09.8]}
59... Ke7 {[%clk 0:00:19.2]} 60. Kg6 {[%clk 0:00:10.1]} 60... Kf8 {[%clk
0:00:17.8]} 61. Rd3 {[%clk 0:00:10.2]} 61... Kg8 {[%clk 0:00:17.5]} 62. Rd4
{[%clk 0:00:08.1]} 62... Kf8 {[%clk 0:00:17.9]} 63. Kh7 {[%clk 0:00:06.9]} 63...
Kf7 {[%clk 0:00:18.1]} 64. Rd3 {[%clk 0:00:07.1]} 64... Kf8 {[%clk 0:00:18.3]}
65. Rd2 {[%clk 0:00:06.9]} 65... Kf7 {[%clk 0:00:18.6]} 66. Rd1 {[%clk
0:00:07.2]} 66... Kf8 {[%clk 0:00:18.9]} 67. Kg6 {[%clk 0:00:07.1]} 67... Kg8
{[%clk 0:00:19.1]} 68. Kf5 {[%clk 0:00:07.2]} 68... Kf7 {[%clk 0:00:19.3]} 69.
e5 {[%clk 0:00:07.7]} 69... fxe5 {[%clk 0:00:19.2]} 70. Kxe5 {[%clk 0:00:08.6]}
70... Ke7 {[%clk 0:00:20.1]} 71. Kf5 {[%clk 0:00:08.8]} 71... Kf7 {[%clk
0:00:20.4]} 72. Rd2 {[%clk 0:00:08.7]} 72... Ke7 {[%clk 0:00:19.6]} 73. Kg6
{[%clk 0:00:08.7]} 73... Kf8 {[%clk 0:00:20]} 74. Rf2+ {[%clk 0:00:08.7]} 74...
Kg8 {[%clk 0:00:20.5]} 75. Rf7 {[%clk 0:00:09.3]} 75... Kh8 {[%clk 0:00:21]} 76.
Rxg7 {[%clk 0:00:07.3]} 76... Ra8 {[%clk 0:00:20.9]} 77. Rh7+ {[%clk 0:00:07.3]}
77... Kg8 {[%clk 0:00:20.8]} 78. Kxh6 {[%clk 0:00:06.3]} 78... Ra6+ {[%clk
0:00:18.6]} 79. Kg5 {[%clk 0:00:06.6]} 79... Rd6 {[%clk 0:00:19.2]} 80. Re7
{[%clk 0:00:05.4]} 80... Rd5+ {[%clk 0:00:18.3]} 81. Kf4 {[%clk 0:00:05.2]}
81... Kf8 {[%clk 0:00:16.2]} 82. Re8+ {[%clk 0:00:05.1]} 82... Kg7 {[%clk
0:00:16]} 83. d8=Q {[%clk 0:00:06]} 83... Ra5 {[%clk 0:00:15.7]} 84. Qe7+ {[%clk
0:00:05.4]} 84... Kh6 {[%clk 0:00:15.9]} 85. Rh8# {[%clk 0:00:05.6]} 1-0

[Event "*** SCC Grand Prix: Titled Tuesday Blitz"]
[Site "Chess.com"]
[Date "2020.09.08"]
[Round "9"]
[White "Konek-Gorbunok"]
[Black "Caterpiller35"]
[Result "0-1"]
[WhiteElo "2331"]
[BlackElo "2453"]
[TimeControl "180+1"]
[EndTime "11:48:40 PDT"]
[Termination "Caterpiller35 won by resignation"]

1. d4 {[%clk 0:03:00.9]} 1... Nf6 {[%clk 0:02:59.7]} 2. Nf3 {[%clk 0:03:01.8]}
2... e6 {[%clk 0:02:55.5]} 3. c4 {[%clk 0:03:02.7]} 3... b6 {[%clk 0:02:54.3]}
4. g3 {[%clk 0:03:01.7]} 4... Ba6 {[%clk 0:02:54.3]} 5. Qa4 {[%clk 0:02:56.1]}
5... c6 {[%clk 0:02:53.1]} 6. Bg2 {[%clk 0:02:52.7]} 6... b5 {[%clk 0:02:50.5]}
7. cxb5 {[%clk 0:02:51.5]} 7... cxb5 {[%clk 0:02:51.4]} 8. Qb3 {[%clk
0:02:44.8]} 8... Nc6 {[%clk 0:02:50.6]} 9. O-O {[%clk 0:02:42.2]} 9... Qb6
{[%clk 0:02:50.5]} 10. e3 {[%clk 0:02:34.5]} 10... Rc8 {[%clk 0:02:47.3]} 11.
Rd1 {[%clk 0:02:19.8]} 11... Be7 {[%clk 0:02:45.5]} 12. Nc3 {[%clk 0:02:17.4]}
12... d5 {[%clk 0:02:43.5]} 13. Ne5 {[%clk 0:02:07.7]} 13... Nxe5 {[%clk
0:02:39.1]} 14. dxe5 {[%clk 0:02:07.1]} 14... Nd7 {[%clk 0:02:39.1]} 15. e4
{[%clk 0:01:54.5]} 15... dxe4 {[%clk 0:02:17.2]} 16. Nxe4 {[%clk 0:01:50.9]}
16... Nxe5 {[%clk 0:02:10.9]} 17. Be3 {[%clk 0:01:49.2]} 17... Qb8 {[%clk
0:02:10.4]} 18. a4 {[%clk 0:01:08.7]} 18... b4 {[%clk 0:02:00.2]} 19. Bf4 {[%clk
0:01:07.6]} 19... O-O {[%clk 0:01:56.7]} 20. Qe3 {[%clk 0:00:55.7]} 20... Nc4
{[%clk 0:01:49.1]} 21. Bxb8 {[%clk 0:00:43]} 21... Nxe3 {[%clk 0:01:48.5]} 22.
fxe3 {[%clk 0:00:43]} 22... Rxb8 {[%clk 0:01:46]} 23. Rd7 {[%clk 0:00:42.9]}
23... Bd8 {[%clk 0:01:39.1]} 24. Rxa7 {[%clk 0:00:40.6]} 24... Bd3 {[%clk
0:01:38.9]} 25. Rd7 {[%clk 0:00:32.4]} 25... Bxe4 {[%clk 0:01:29]} 26. Bxe4
{[%clk 0:00:31.7]} 26... Bb6 {[%clk 0:01:29.1]} 27. Kf2 {[%clk 0:00:28.1]} 27...
Rfd8 {[%clk 0:01:27]} 28. Rxd8+ {[%clk 0:00:23.8]} 28... Rxd8 {[%clk 0:01:27]}
29. Ke2 {[%clk 0:00:23.6]} 29... f5 {[%clk 0:01:22.8]} 30. Bd3 {[%clk
0:00:21.5]} 30... Kf7 {[%clk 0:01:20.5]} 31. a5 {[%clk 0:00:21.1]} 31... Ba7
{[%clk 0:01:11]} 32. Rc1 {[%clk 0:00:20.2]} 32... Rd7 {[%clk 0:01:09.3]} 33. a6
{[%clk 0:00:17.7]} 33... Kf6 {[%clk 0:01:07.4]} 34. Bb5 {[%clk 0:00:17.4]} 34...
Re7 {[%clk 0:01:01.7]} 35. Rc4 {[%clk 0:00:17.3]} 35... g5 {[%clk 0:00:54.6]}
36. Rxb4 {[%clk 0:00:17.2]} 36... h5 {[%clk 0:00:54.7]} 37. Rc4 {[%clk
0:00:16.9]} 37... g4 {[%clk 0:00:53]} 38. Bc6 {[%clk 0:00:16.6]} 38... Rc7
{[%clk 0:00:48.6]} 39. b4 {[%clk 0:00:16.5]} 39... h4 {[%clk 0:00:48.5]} 40. b5
{[%clk 0:00:15.7]} 40... hxg3 {[%clk 0:00:45.9]} 41. hxg3 {[%clk 0:00:16.6]}
41... Rh7 {[%clk 0:00:45.9]} 42. Rb4 {[%clk 0:00:15.5]} 42... Rh2+ {[%clk
0:00:42.9]} 43. Kd3 {[%clk 0:00:15.6]} 43... Bb6 {[%clk 0:00:42.7]} 44. Ra4
{[%clk 0:00:15.1]} 44... Ba7 {[%clk 0:00:42.2]} 45. Rb4 {[%clk 0:00:14.3]} 45...
Bb6 {[%clk 0:00:41.7]} 46. Rc4 {[%clk 0:00:14.2]} 46... Rh3 {[%clk 0:00:40]} 47.
Ra4 {[%clk 0:00:09.5]} 47... Ba7 {[%clk 0:00:35.9]} 48. Rb4 {[%clk 0:00:09.1]}
48... Bb6 {[%clk 0:00:35.1]} 49. Ra4 {[%clk 0:00:09.3]} 49... Rxg3 {[%clk
0:00:33.2]} 50. a7 {[%clk 0:00:08.2]} 50... Rxe3+ {[%clk 0:00:33.2]} 51. Kd2
{[%clk 0:00:08.2]} 51... Bxa7 {[%clk 0:00:31.7]} 52. Rxa7 {[%clk 0:00:09.1]}
52... Rb3 {[%clk 0:00:31.6]} 53. Kc2 {[%clk 0:00:08.7]} 53... Rb4 {[%clk
0:00:31.4]} 54. Kc3 {[%clk 0:00:08.9]} 54... Rb1 {[%clk 0:00:31.6]} 55. Kc2
{[%clk 0:00:09.1]} 55... Rb4 {[%clk 0:00:31.8]} 56. Kc3 {[%clk 0:00:09.1]} 56...
Rb1 {[%clk 0:00:31.9]} 57. Kc4 {[%clk 0:00:09.3]} 57... f4 {[%clk 0:00:31.3]}
58. Kc5 {[%clk 0:00:09.3]} 58... f3 {[%clk 0:00:30.4]} 59. b6 {[%clk 0:00:10.2]}
59... f2 {[%clk 0:00:24.9]} 60. Bg2 {[%clk 0:00:10.1]} 60... e5 {[%clk
0:00:23.6]} 61. Kc6 {[%clk 0:00:08.5]} 61... e4 {[%clk 0:00:22.6]} 62. Ra2
{[%clk 0:00:08.4]} 62... e3 {[%clk 0:00:21.6]} 63. Re2 {[%clk 0:00:07.7]} 63...
Rc1+ {[%clk 0:00:16.4]} 64. Kd7 {[%clk 0:00:07.1]} 64... Re1 {[%clk 0:00:15.9]}
65. Bf1 {[%clk 0:00:03.8]} 65... Rxf1 {[%clk 0:00:14.8]} 66. b7 {[%clk
0:00:02.8]} 66... Rb1 {[%clk 0:00:14.8]} 67. Rxe3 {[%clk 0:00:02.9]} 67... f1=Q
{[%clk 0:00:14.8]} 68. Kc8 {[%clk 0:00:03.8]} 68... Qf5+ {[%clk 0:00:13.7]} 0-1